bitfinex-derivatives/quotes_SOLF0:USTF0_20241229
["timestamp","ask_amount","ask_price","bid_price","bid_amount"]
[1735513992508,4.8696,188.99,188.84,3.1474]
[1735513992909,1.5164,188.98,188.84,3.1474]
[1735513993320,2.6517,188.93,188.88,2.6522]
[1735513993619,1.5164,188.98,188.88,3.38]
[1735513994015,2.6513,188.95,188.9,2.652]
[1735513994414,2.6513,188.95,188.89,2.6521]
[1735513994622,19.3146513,188.97,188.84,3.1474]
[1735513994914,19.3146513,188.97,188.86,2.6525]
[1735513995120,3.38,188.96,188.86,2.6525]
[1735513995527,2.6518,188.92,188.87,2.6524]
[1735513996020,1.5164,188.98,188.84,22.6946513]
[1735513996321,2.6515,188.94,188.9,2.652]
[1735513997114,2.6517,188.93,188.88,2.6523]
[1735513997315,19.3146513,188.97,188.84,3.38]
[1735513998118,19.3146513,188.94,188.74,7.23712952]
[1735513998420,19.3146513,188.94,188.8,3.38]
[1735513998421,12.13907437,188.92,188.8,3.38]
[1735513998815,2.6525,188.87,188.82,2.653]
[1735513999320,12.13907437,188.92,188.64,15.9]
[1735513999515,12.13907437,188.92,188.77,12.13907437]
[1735513999716,12.13907437,188.92,188.78,3.38]
[1735513999912,2.6527,188.86,188.81,2.6532]
[1735514001322,19.42653383,188.92,188.79,2.6535]
[1735514001624,3.0547,188.91,188.78,3.38]
[1735514001817,2.6524,188.88,188.78,3.38]
[1735514002018,1.4966,188.9,188.78,3.38]
[1735514002220,1.4966,188.9,188.66,28.94851809]
[1735514002221,19.42653383,188.88,188.66,28.94851809]
[1735514002523,19.42653383,188.88,188.7,19.42653383]
[1735514003113,2.6533,188.82,188.77,2.6538]
[1735514003321,19.42653383,188.88,188.74,3.38]
[1735514003717,2.6534,188.81,188.76,2.6539]
[1735514004120,3.38,188.83,188.67,4.6863]
[1735514004318,19.42653383,188.85,188.68,3.38]
[1735514004523,3.38,188.84,188.68,3.38]
[1735514004725,22.80653383,188.85,188.7,19.42653383]
[1735514004917,2.6532,188.82,188.7,19.42653383]
[1735514005122,3.38,188.86,188.7,19.42653383]
[1735514005420,19.42653383,188.88,188.7,19.42653383]
[1735514005828,22.80653383,188.88,188.7,19.42653383]
[1735514006122,1.4966,188.9,188.73,19.42653383]
[1735514006319,1.4966,188.9,188.74,3.38]
[1735514006719,2.6523,188.89,188.85,2.6527]
[1735514006925,2.6523,188.89,188.82,3.38]
[1735514008530,2.6523,188.89,188.84,2.6528]
[1735514010731,19.42653383,188.91,188.82,3.38]
[1735514011530,3.48,188.9,188.75,4.6726]
[1735514011724,19.42653383,188.91,188.76,3.48]
[1735514011920,2.6525,188.87,188.81,2.6533]
[1735514012229,22.90653383,188.91,188.81,3.48]
[1735514012230,19.42653383,188.91,188.81,3.48]
[1735514014221,19.42653383,188.91,188.76,3.48]
[1735514014425,2.6531,188.83,188.78,2.6536]
[1735514014623,3.0981,188.9,188.76,3.48]
[1735514015528,2.6529,188.84,188.78,2.6537]
[1735514015728,2.6529,188.84,188.77,3.48]
[1735514016029,3.0981,188.9,188.77,3.48]
[1735514016233,2.6533,188.82,188.77,6.1337]
[1735514016424,19.42653383,188.87,188.77,3.48]
[1735514016731,5.0938,188.86,188.74,3.48]
[1735514016921,2.6536,188.79,188.74,6.1342]
[1735514017126,5.0938,188.86,188.74,2.6542]
[1735514017522,2.6537,188.79,188.74,2.6542]
[1735514018132,1.6138,188.86,188.72,3.48]
[1735514019730,2.6532,188.82,188.77,2.6538]
[1735514020033,1.6138,188.86,188.72,3.48]
[1735514020437,2.6532,188.82,188.72,3.48]
[1735514021437,2.6532,188.82,188.77,2.6537]
[1735514022137,2.6533,188.81,188.72,3.48]
[1735514022335,12.14815743,188.85,188.72,3.48]
[1735514022540,12.14815743,188.85,188.71,12.14815743]
[1735514022835,12.14815743,188.85,188.72,3.48]
[1735514023736,2.6536,188.79,188.72,3.48]
[1735514024037,12.14815743,188.85,188.72,3.48]
[1735514024635,2.6531,188.82,188.78,2.6537]
[1735514025235,2.6533,188.81,188.76,2.6539]
[1735514025428,12.14815743,188.85,188.61,206.21687004]
[1735514025429,12.14815743,188.85,188.72,3.48]
[1735514025831,2.6534,188.81,188.76,2.6539]
[1735514026034,2.6534,188.81,188.73,3.1144]
[1735514026035,12.14815743,188.85,188.73,3.1144]
[1735514026442,2.6533,188.81,188.77,2.6537]
[1735514027341,12.14815743,188.85,188.71,3.48]
[1735514027935,12.14815743,188.85,188.74,2.6542]
[1735514028135,12.14815743,188.85,188.71,3.48]
[1735514028341,2.6536,188.79,188.75,2.6541]
[1735514029140,2.6532,188.82,188.78,2.6537]
[1735514029342,12.14815743,188.85,188.72,12.14815743]
[1735514029840,2.6534,188.81,188.75,2.654]
[1735514030144,12.14815743,188.85,188.76,3.48]
[1735514030645,2.6532,188.82,188.78,2.6537]
[1735514031435,2.653,188.83,188.8,2.6534]
[1735514031637,1.6138,188.86,188.76,3.48]
[1735514032043,1.6138,188.86,188.77,1.5736]
[1735514032548,12.14815743,188.88,188.77,1.5736]
[1735514032743,12.14815743,188.88,188.78,2.9922]
[1735514032940,2.6526,188.86,188.81,2.6533]
[1735514033340,2.6529,188.84,188.8,2.6534]
[1735514033545,12.14815743,188.85,188.78,2.9922]
[1735514034046,2.6531,188.83,188.79,2.6535]
[1735514036342,12.14815743,188.85,188.77,1.5736]
[1735514036747,12.14815743,188.85,188.75,3.48]
[1735514037047,12.14815743,188.82,188.75,3.48]
[1735514038446,2.6534,188.81,188.77,2.6538]
[1735514038647,12.14815743,188.82,188.75,3.48]
[1735514039447,2.6537,188.79,188.75,6.134]
[1735514039649,12.14815743,188.82,188.75,3.48]
[1735514040050,2.6537,188.79,188.75,3.48]
[1735514040452,12.14815743,188.82,188.75,3.48]
[1735514040855,12.14815743,188.82,188.71,30.58301809]
[1735514041046,12.14815743,188.82,188.73,2.6544]
[1735514041557,2.6539,188.77,188.73,2.6544]
[1735514041856,12.14815743,188.82,188.73,2.6544]
[1735514041857,12.14815743,188.79,188.73,2.6544]
[1735514042858,2.654,188.76,188.72,2.6545]
[1735514043653,12.14815743,188.82,188.71,28.94851809]
[1735514043855,1.5193,188.84,188.73,12.14815743]
[1735514044058,12.14815743,188.85,188.74,1.618]
[1735514044257,2.653,188.83,188.74,1.618]
[1735514044457,12.14815743,188.85,188.74,1.618]
[1735514044962,14.80095743,188.85,188.74,1.618]
[1735514045755,12.14815743,188.85,188.74,1.618]
[1735514046354,2.6531,188.83,188.78,2.6536]
[1735514046758,12.14815743,188.85,188.77,3.48]
[1735514046759,14.80095743,188.85,188.8,2.6533]
[1735514046962,14.80095743,188.85,188.77,3.48]
[1735514047156,12.14815743,188.85,188.77,3.48]
[1735514047660,2.6531,188.83,188.78,2.6537]
[1735514047857,12.14815743,188.85,188.78,2.6537]
[1735514048263,2.653,188.83,188.78,2.6537]
[1735514048661,2.6531,188.83,188.78,2.6537]
[1735514048960,12.14815743,188.85,188.78,2.6537]
[1735514049358,2.6534,188.81,188.77,3.48]
[1735514049559,12.14815743,188.85,188.74,1.618]
[1735514049759,12.14815743,188.85,188.75,3.48]
[1735514049965,2.6537,188.78,188.75,3.48]
[1735514050864,2.6539,188.77,188.74,1.618]
[1735514051066,12.14815743,188.85,188.74,1.618]
[1735514051260,12.14815743,188.85,188.75,2.6541]
[1735514051459,2.6536,188.8,188.75,2.6541]
[1735514051661,12.14815743,188.85,188.74,1.618]
[1735514051862,2.6533,188.81,188.77,2.6537]
[1735514052063,12.14815743,188.85,188.77,2.6537]
[1735514052459,12.14815743,188.85,188.77,3.48]
[1735514052762,59.79852269,188.89,188.77,3.48]
[1735514052968,2.6528,188.85,188.81,2.6532]
[1735514053163,2.6528,188.85,188.77,3.48]
[1735514053468,12.14815743,188.87,188.77,3.48]
[1735514053765,2.6529,188.84,188.77,3.48]
[1735514055262,12.14815743,188.87,188.77,3.48]
[1735514055468,12.14815743,188.87,188.72,7.23712952]
[1735514055672,2.6532,188.82,188.73,3.48]
[1735514055868,2.6532,188.82,188.74,1.6108]
[1735514056066,12.14815743,188.87,188.74,1.6108]
[1735514056364,2.653,188.84,188.74,1.6108]
[1735514056765,2.653,188.83,188.78,2.6536]
[1735514056966,12.14815743,188.87,188.79,3.48]
[1735514058069,2.6532,188.82,188.79,3.48]
[1735514058773,12.14815743,188.84,188.79,3.48]
[1735514058973,12.14815743,188.84,188.76,6.1339]
[1735514059274,2.6532,188.82,188.76,3.48]
[1735514059474,12.14815743,188.84,188.76,3.48]
[1735514059875,2.6535,188.8,188.76,3.48]
[1735514060281,2.6535,188.8,188.76,6.1339]
[1735514061077,2.6532,188.82,188.78,2.6537]
[1735514061272,12.14815743,188.87,188.76,3.48]
[1735514061776,2.6526,188.86,188.82,2.6531]
[1735514062374,1.6278,188.89,188.81,3.48]
[1735514062575,12.14815743,188.91,188.81,3.48]
[1735514062871,2.6524,188.88,188.83,2.653]
[1735514063382,2.6524,188.88,188.81,3.48]
[1735514063678,1.5658,188.93,188.81,15.62815743]
[1735514063979,1.5658,188.93,188.82,1.499]
[1735514064174,14.79975743,188.94,188.89,2.652]
[1735514064474,12.14815743,188.94,188.87,3.48]
[1735514064678,12.14815743,188.94,188.9,2.6519]
[1735514065072,12.14815743,188.94,188.87,3.48]
[1735514065874,12.14815743,188.91,188.87,3.48]
[1735514066579,12.14815743,188.91,188.83,3.48]
[1735514067179,2.6524,188.88,188.83,6.133]
[1735514068182,12.14815743,188.91,188.83,3.48]
[1735514068483,2.6522,188.89,188.84,2.6528]
[1735514071081,14.80015743,188.91,188.86,2.6525]
[1735514071283,12.14815743,188.91,188.86,2.6525]
[1735514072185,12.14815743,188.91,188.83,3.48]
[1735514072584,2.6525,188.87,188.77,12.14815743]
[1735514072778,2.6525,188.87,188.78,3.48]
[1735514073184,2.6525,188.87,188.82,2.653]
[1735514073379,12.14815743,188.91,188.78,3.48]
[1735514073578,12.14815743,188.88,188.79,3.48]
[1735514074178,2.653,188.83,188.79,3.48]
[1735514074582,2.653,188.83,188.79,2.6535]
[1735514075485,2.6529,188.84,188.8,2.6534]
[1735514076181,12.14815743,188.88,188.79,3.48]
[1735514076385,2.6525,188.87,188.82,2.6531]
[1735514076585,12.14815743,188.88,188.82,2.6531]
[1735514076886,2.6526,188.86,188.79,3.48]
[1735514077087,12.14815743,188.91,188.79,3.48]
[1735514077287,12.14815743,188.91,188.8,12.14815743]
[1735514077487,2.6521,188.9,188.86,2.6526]
[1735514078282,2.6521,188.9,188.85,2.6527]
[1735514078487,2.6523,188.89,188.85,6.1327]
[1735514079589,12.14815743,188.91,188.85,3.48]
[1735514079789,12.14815743,188.91,188.81,3.48]
[1735514080385,12.14815743,188.88,188.64,275.78466674]
[1735514080586,1.5629,188.87,188.77,3.48]
[1735514080889,2.653,188.84,188.79,2.6535]
[1735514081884,2.653,188.83,188.79,2.6535]
[1735514082287,2.653,188.83,188.78,6.1337]
[1735514083189,12.14815743,188.85,188.78,3.48]
[1735514083393,12.14815743,188.85,188.77,2.6538]
[1735514083394,12.14815743,188.85,188.75,3.48]
[1735514083692,2.6535,188.8,188.75,6.134]
[1735514083893,2.6535,188.8,188.75,3.48]
[1735514085183,2.6535,188.8,188.76,2.6539]
[1735514085793,12.14815743,188.85,188.73,2.6544]
[1735514085794,2.6538,188.78,188.73,2.6544]
[1735514085994,12.14815743,188.85,188.71,3.48]
[1735514086496,2.6534,188.8,188.75,2.6541]
[1735514087087,12.14815743,188.85,188.71,3.48]
[1735514087495,12.14815743,188.85,188.73,12.14815743]
[1735514087694,12.14815743,188.85,188.74,1.6122]
[1735514088296,2.6529,188.84,188.79,2.6535]
[1735514088493,12.14815743,188.85,188.77,3.48]
[1735514088893,12.14815743,188.85,188.73,12.14815743]
[1735514088894,12.14815743,188.85,188.73,3.48]
[1735514089093,1.5629,188.87,188.75,12.14815743]
[1735514089296,2.6524,188.87,188.83,2.653]
[1735514089596,12.14815743,188.91,188.8,3.48]
[1735514090391,12.14815743,188.91,188.82,2.653]
[1735514090392,2.6525,188.87,188.82,2.653]
[1735514091797,12.14815743,188.91,188.8,3.48]
[1735514092395,12.14815743,188.88,188.8,3.48]
[1735514093299,2.6528,188.85,188.81,2.6532]
[1735514093893,2.653,188.83,188.8,3.48]
[1735514094294,2.6533,188.82,188.78,2.6537]
[1735514094799,12.14815743,188.85,188.77,3.48]
[1735514094999,12.14815743,188.85,188.74,12.14815743]
[1735514095195,2.6531,188.82,188.77,2.6538]
[1735514095995,2.6531,188.82,188.78,2.6536]
[1735514096795,2.653,188.84,188.79,2.6535]
[1735514097002,12.14815743,188.87,188.79,2.6535]
[1735514097902,2.6532,188.82,188.75,3.48]
[1735514098098,2.6532,188.82,188.78,2.6537]
[1735514098299,12.14815743,188.87,188.75,3.48]
[1735514098494,12.14815743,188.84,188.75,3.48]
[1735514098800,12.14815743,188.84,188.75,6.1341]
[1735514099203,2.6537,188.79,188.75,6.1341]
[1735514099793,2.6534,188.8,188.75,3.48]
[1735514099997,12.14815743,188.84,188.75,3.48]
[1735514100200,12.14815743,188.84,188.71,1.6219]
[1735514100403,2.6534,188.8,188.72,15.60815743]
[1735514101595,2.6539,188.77,188.73,3.46]
[1735514101795,12.14815743,188.84,188.69,1.5506]
[1735514101999,2.653,188.83,188.73,1.6419]
[1735514102195,12.14815743,188.87,188.8,2.6534]
[1735514102503,2.6527,188.85,188.77,3.46]
[1735514102904,2.6527,188.85,188.8,2.6534]
[1735514103305,2.6529,188.84,188.8,2.6534]
[1735514103501,12.14815743,188.87,188.77,3.46]
[1735514103695,12.14815743,188.87,188.79,2.6535]
[1735514103899,2.653,188.84,188.79,2.6535]
[1735514104303,2.653,188.84,188.8,2.6534]
[1735514104504,10.42513978,188.85,188.77,11.23233978]
[1735514104901,10.42513978,188.85,188.8,2.6533]
[1735514105103,7.77233978,188.85,188.77,3.46]
[1735514106404,2.6529,188.84,188.77,3.46]
[1735514107207,7.77233978,188.85,188.77,3.46]
[1735514107408,7.77233978,188.81,188.74,1.5705]
[1735514107806,7.77233978,188.81,188.75,2.654]
[1735514107807,2.6534,188.8,188.75,2.654]
[1735514108104,2.6534,188.8,188.74,1.5705]
[1735514108512,10.42563978,188.81,188.76,2.6539]
[1735514109414,2.6534,188.8,188.76,2.654]
[1735514109622,3.46,188.87,188.75,7.77233978]
[1735514109821,7.77233978,188.83,188.75,7.77233978]
[1735514110215,58.32874658,188.9,188.75,7.77233978]
[1735514110518,7.77233978,188.87,188.79,7.77233978]
[1735514110712,7.77233978,188.87,188.82,2.6531]
[1735514110913,7.77233978,188.87,188.8,3.46]
[1735514111113,58.32874658,188.9,188.8,3.46]
[1735514111114,7.77233978,188.9,188.83,7.77233978]
[1735514111320,7.77233978,188.9,188.85,2.6527]
[1735514111514,7.77233978,188.88,188.85,3.46]
[1735514112221,2.6523,188.89,188.85,3.46]
[1735514112417,12.14039376,188.91,188.85,3.46]
[1735514112618,12.14039376,188.88,188.81,3.46]
[1735514113317,2.6528,188.85,188.81,3.46]
[1735514114119,1.6244,188.91,188.81,3.46]
[1735514114319,12.14039376,188.92,188.81,3.46]
[1735514115219,2.652,188.9,188.85,2.6527]
[1735514115417,12.14039376,188.92,188.82,2.9721]
[1735514115817,12.14039376,188.92,188.83,1.564]
[1735514116018,12.14039376,188.92,188.81,3.46]
[1735514116218,2.652,188.9,188.85,2.6527]
[1735514116822,12.14039376,188.92,188.86,2.6526]
[1735514117222,12.14039376,188.92,188.86,6.1126]
[1735514117424,2.6519,188.91,188.86,6.1126]
[1735514117727,2.6519,188.91,188.87,2.6524]
[1735514118824,2.6519,188.91,188.86,6.1125]
[1735514119023,12.14039376,188.94,188.86,3.46]
[1735514119529,2.652,188.91,188.86,3.46]
[1735514120130,2.652,188.9,188.86,6.1125]
[1735514120429,12.14039376,188.96,188.86,3.46]
[1735514120633,2.6516,188.93,188.87,2.6524]
[1735514120820,2.6516,188.93,188.86,3.46]
[1735514121427,12.14039376,188.96,188.86,3.46]
[1735514122021,12.14039376,188.94,188.86,3.46]
[1735514122227,2.6519,188.92,188.86,3.46]
[1735514122829,2.6519,188.92,188.87,2.6523]
[1735514123025,12.14039376,188.91,188.77,4.6111]
[1735514123223,12.14039376,188.91,188.8,2.6534]
[1735514123427,12.14039376,188.91,188.8,3.46]
[1735514123629,2.6528,188.85,188.8,3.46]
[1735514123827,12.14039376,188.88,188.8,3.46]
[1735514124030,1.5398,188.9,188.8,3.46]
[1735514124330,1.5398,188.9,188.84,2.6529]
[1735514124526,12.14039376,188.93,188.8,3.46]
[1735514124732,15.60039376,188.95,188.82,12.14039376]
[1735514124932,12.14039376,188.95,188.82,12.14039376]
[1735514125335,2.6519,188.91,188.82,12.14039376]
[1735514126528,13.76569376,188.97,188.85,12.14039376]
[1735514126727,13.76569376,188.97,188.86,8.118]
[1735514127533,2.6514,188.95,188.86,8.118]
[1735514128625,2.6514,188.95,188.91,2.6518]
[1735514128933,1.93862112,188.99,188.91,3.46]
[1735514129323,2.6509,188.98,188.93,2.6515]
[1735514129529,90.17437387,189.01,188.91,3.46]
[1735514129930,92.82497387,189.01,188.91,15.60039376]
[1735514130430,92.82497387,189.01,188.95,2.6512]
[1735514130730,92.82497387,189.01,188.96,3.48]
[1735514131037,12.14039376,188.98,188.9,3.48]
[1735514131530,2.6515,188.94,188.9,3.48]
[1735514131926,79.60308011,189.01,188.9,3.48]
[1735514132133,12.14039376,189.0,188.9,3.48]
[1735514132633,2.6519,188.91,188.87,3.48]
[1735514134030,12.14039376,188.97,188.87,6.1324]
[1735514134224,12.14039376,188.97,188.87,3.48]
[1735514134830,1.5057,188.98,188.87,15.62039376]
[1735514135025,12.14039376,189.03,188.9,12.14039376]
[1735514136435,14.79069376,189.03,188.93,2.6515]
[1735514136732,14.79069376,189.03,188.94,3.48]
[1735514137132,14.79069376,189.03,188.97,2.651]
[1735514137530,2.6504,189.02,188.97,2.651]
[1735514138334,12.14039376,189.03,188.94,3.48]
[1735514138536,12.14039376,189.0,188.9,3.48]
[1735514139128,12.14039376,188.97,188.9,3.48]
[1735514141437,2.6517,188.93,188.9,3.48]
[1735514141637,12.14039376,188.97,188.9,3.48]
[1735514141932,2.6519,188.91,188.86,3.48]
[1735514142139,12.14039376,188.94,188.86,3.48]
[1735514142535,12.14039376,188.94,188.86,2.6525]
[1735514143441,2.652,188.9,188.86,2.6525]
[1735514146341,2.652,188.9,188.82,3.48]
[1735514147236,17.17979376,188.97,188.84,12.14039376]
[1735514147434,13.69979376,188.97,188.84,12.14039376]
[1735514147636,13.69979376,188.97,188.85,1.5562]
[1735514148433,58.37523239,189.03,188.85,1.5562]
[1735514148634,70.51562615,189.03,188.9,12.14039376]
[1735514148838,12.14039376,189.03,188.9,15.62039376]
[1735514149445,12.14039376,189.03,188.93,2.6515]
[1735514149446,2.6509,188.98,188.93,2.6515]
[1735514149642,12.14039376,189.03,188.9,15.62039376]
[1735514150042,2.6509,188.99,188.9,15.62039376]
[1735514150243,12.14039376,189.03,188.9,15.62039376]
[1735514151047,2.6507,189.0,188.95,2.6512]
[1735514151243,12.14039376,189.03,188.9,15.62039376]
[1735514152048,2.6505,189.01,188.97,2.651]
[1735514152545,2.6508,188.99,188.91,3.1648]
[1735514153144,1.4805,189.04,188.93,12.14039376]
[1735514154144,2.6506,189.0,188.95,2.6513]
[1735514154350,1.4805,189.04,188.95,3.48]
[1735514154351,12.14039376,189.03,188.95,3.48]
[1735514154746,15.62039376,189.03,188.91,6.6448]
[1735514155043,12.14039376,189.0,188.87,12.14039376]
[1735514155249,12.14039376,189.0,188.88,3.48]
[1735514156248,12.14039376,189.0,188.9,2.652]
[1735514156949,2.6514,188.95,188.9,2.652]
[1735514157848,2.6514,188.95,188.91,2.6518]
[1735514158148,2.6511,188.97,188.88,3.48]
[1735514158451,2.6511,188.97,188.92,2.6516]
[1735514159653,2.6512,188.96,188.92,2.6516]
[1735514161346,2.651,188.98,188.93,2.6515]
[1735514161948,2.651,188.98,188.88,3.48]
[1735514162246,12.14039376,189.03,188.9,12.14039376]
[1735514162551,12.14039376,189.03,188.92,2.6517]
[1735514162947,12.14039376,189.0,188.88,3.48]
[1735514163151,12.14039376,189.0,188.9,2.6519]
[1735514163552,2.6517,188.93,188.87,12.14039376]
[1735514163749,12.14039376,189.0,188.89,2.652]
[1735514163950,12.14039376,189.0,188.87,12.14039376]
[1735514164152,2.6514,188.95,188.91,2.6519]
[1735514164554,2.6514,188.95,188.87,12.14039376]
[1735514164749,2.6514,188.95,188.9,2.652]
[1735514164954,12.14039376,188.97,188.85,3.0919]
[1735514165155,12.14039376,188.97,188.86,3.44]
[1735514165452,2.6518,188.92,188.87,2.6524]
[1735514166055,12.14039376,188.97,188.86,2.6526]
[1735514166350,12.14039376,188.94,188.81,12.14039376]
[1735514166555,12.14039376,188.91,188.81,3.44]
[1735514166744,12.14039376,188.91,188.81,6.0933]
[1735514166946,12.14039376,188.91,188.8,3.0922]
[1735514167156,3.44,188.94,188.8,3.0922]
[1735514167360,12.14039376,188.91,188.8,5.7456]
[1735514167549,12.14039376,188.91,188.8,3.0922]
[1735514168459,2.6525,188.87,188.82,2.6531]
[1735514169256,2.6523,188.88,188.83,2.653]
[1735514169957,12.14039376,188.94,188.81,12.14039376]
[1735514171056,2.6523,188.88,188.81,12.14039376]
[1735514171254,2.6523,188.88,188.8,3.0922]
[1735514171454,12.14039376,188.91,188.8,3.0922]
[1735514172456,2.6525,188.87,188.83,2.653]
[1735514172850,12.14039376,188.91,188.83,2.653]
[1735514173051,2.6526,188.86,188.8,3.0922]
[1735514173654,2.6526,188.86,188.81,2.6533]
[1735514174056,3.44,188.9,188.78,1.6347]
[1735514174357,3.44,188.9,188.74,1.5362]
[1735514174358,12.14039376,188.88,188.77,3.44]
[1735514174656,3.0756,188.87,188.77,3.44]
[1735514175055,3.0756,188.87,188.74,3.1434]
[1735514175256,3.0756,188.87,188.74,6.5834]
[1735514175961,12.14039376,188.85,188.76,2.6539]
[1735514176357,2.6536,188.79,188.75,2.654]
[1735514176561,15.58039376,188.85,188.7,12.14039376]
[1735514176962,15.58039376,188.85,188.7,13.65999376]
[1735514177561,15.58039376,188.85,188.73,12.14039376]
[1735514178162,12.14039376,188.85,188.73,12.14039376]
[1735514178462,2.6534,188.8,188.76,2.6539]
[1735514178759,3.44,188.84,188.73,12.14039376]
[1735514180561,2.6536,188.8,188.76,2.6539]
[1735514180760,3.0756,188.87,188.73,12.14039376]
[1735514180959,2.6526,188.86,188.83,2.653]
[1735514181358,12.14039376,188.9,188.78,3.44]
[1735514181659,12.14039376,188.9,188.79,13.71589376]
[1735514182063,2.6523,188.88,188.79,13.71589376]
[1735514182462,12.14039376,188.9,188.79,13.71589376]
[1735514183169,2.6525,188.87,188.82,2.6531]
[1735514183358,12.14039376,188.9,188.79,1.5755]
[1735514183663,2.6528,188.85,188.8,2.6533]
[1735514184061,3.2021,188.93,188.79,13.71589376]
[1735514184258,12.14039376,188.92,188.79,13.71589376]
[1735514184459,2.6523,188.89,188.79,13.71589376]
[1735514184867,2.6523,188.89,188.84,2.6528]
[1735514186261,12.14039376,188.92,188.79,13.71589376]
[1735514187463,2.6523,188.88,188.83,2.653]
[1735514188767,12.14039376,188.92,188.79,13.71589376]
[1735514188968,2.6522,188.89,188.84,2.6527]
[1735514190663,13.77889376,188.95,188.83,3.38]
[1735514191263,2.6519,188.92,188.87,2.6524]
[1735514191467,12.14039376,188.95,188.83,3.38]
[1735514192070,2.6516,188.93,188.88,2.6523]
[1735514193371,2.652,188.9,188.83,3.38]
[1735514193770,2.6518,188.92,188.87,2.6524]
[1735514194273,12.14039376,188.95,188.88,2.6522]
[1735514194274,2.6516,188.94,188.88,2.6522]
[1735514194569,2.6516,188.94,188.88,6.0322]
[1735514195272,2.6516,188.94,188.88,3.38]
[1735514195475,2.6513,188.96,188.88,3.38]
[1735514195969,2.6513,188.96,188.91,2.6519]
[1735514196371,7.76413437,188.95,188.91,2.6519]
[1735514196766,3.1858,188.99,188.88,11.14413437]
[1735514196968,2.651,188.98,188.93,2.6516]
[1735514197174,10.41513437,188.98,188.93,2.6516]
[1735514198366,2.651,188.98,188.93,2.6516]
[1735514198568,2.651,188.98,188.93,6.0316]
[1735514198863,13.61434868,189.01,188.93,6.0316]
[1735514199067,2.651,188.97,188.93,6.0316]
[1735514200071,12.12764868,189.01,188.93,3.38]
[1735514200275,12.12764868,189.04,188.93,3.38]
[1735514200577,2.6505,189.01,188.97,2.651]
[1735514201475,2.6505,189.01,188.96,2.6511]
[1735514202065,12.12764868,189.04,188.96,2.6511]
[1735514202266,12.12764868,189.01,188.92,3.38]
[1735514202665,12.12764868,189.01,188.92,6.0317]
[1735514202873,12.12764868,189.01,188.92,3.38]
[1735514203772,2.6512,188.96,188.92,6.0317]
[1735514204172,2.6512,188.96,188.92,3.38]
[1735514204568,12.12764868,189.01,188.92,3.38]
[1735514204972,2.6516,188.94,188.92,3.38]
[1735514205172,12.12764868,188.98,188.87,1.56]
[1735514205469,2.6515,188.94,188.87,4.94]
[1735514205774,1.6391,188.97,188.87,1.56]
[1735514205976,2.652,188.91,188.87,4.2124]
[1735514206677,2.652,188.91,188.83,12.12764868]
[1735514206678,2.6522,188.89,188.84,6.0328]
[1735514207673,12.12764868,188.92,188.84,3.38]
[1735514208073,12.12764868,188.92,188.74,4.6337]
[1735514208074,2.6528,188.85,188.79,2.6535]
[1735514208274,2.6528,188.85,188.8,3.38]
[1735514208879,2.6528,188.85,188.8,6.0333]
[1735514209074,12.12764868,188.92,188.77,12.12764868]
[1735514209279,12.12764868,188.92,188.86,2.6526]
[1735514209777,14.77954868,188.92,188.86,2.6526]
[1735514210180,14.77954868,188.92,188.87,2.6524]
[1735514210874,12.12764868,188.95,188.84,3.38]
[1735514211074,2.6515,188.94,188.89,2.6521]
[1735514211376,12.12764868,188.95,188.89,2.6521]
[1735514212381,12.12764868,188.95,188.84,6.5374]
[1735514212980,2.6519,188.91,188.87,2.6523]
[1735514213181,1.6304,188.96,188.84,6.5374]